fUST/lending_fUST_20250829
["ID","MTS","AMOUNT","RATE_DAILY","PERIOD"]
[381951656,1756443040011,-500.0,0.00023973,2]
[381951658,1756443040019,-500.0,0.00023973,2]
[381951660,1756443040029,-500.0,0.00023973,2]
[381951662,1756443040038,-500.0,0.00023973,2]
[381951664,1756443040049,-319.18856045,0.00023979,2]
[381951666,1756443040058,-459.88,0.0002398,3]
[381951668,1756443040067,-383.24,0.0002398,3]
[381951670,1756443040076,-191.62,0.0002398,3]
[381951672,1756443040086,-574.86,0.0002398,3]
[381951674,1756443040096,-543610.37241981,0.0002398,2]
[381951925,1756443255482,5000.0,0.000173,6]
[381951926,1756443279290,5000.0,0.000167,2]
[381951927,1756443303034,515.27160245,0.000167,2]
[381951928,1756443303058,4484.72839755,0.000167,2]
[381951930,1756443326829,189.863822,0.00013699,2]
[381951931,1756443327313,5000.0,0.000167,2]
[381951932,1756443349697,325.41778045,0.000167,2]
[381951933,1756443349719,4674.58221955,0.000167,2]
[381951934,1756443373084,5000.0,0.000167,2]
[381951935,1756443395916,325.42778045,0.000167,2]
[381951936,1756443395941,4674.57221955,0.000167,2]
[381951937,1756443419121,5000.0,0.000167,2]
[381951938,1756443443525,325.43778045,0.000167,2]
[381951939,1756443443549,4674.56221955,0.000167,2]
[381951940,1756443466982,5000.0,0.000167,2]
[381951941,1756443490180,325.44778045,0.000167,2]
[381951942,1756443490208,4674.55221955,0.000167,2]
[381951943,1756443515284,5000.0,0.000167,2]
[381951944,1756443537794,325.45778045,0.000167,2]
[381951945,1756443537816,4674.54221955,0.000167,2]
[381951946,1756443561244,5000.0,0.000167,2]
[381951947,1756443584239,325.46778045,0.000167,2]
[381951948,1756443584265,4674.53221955,0.000167,2]
[381951949,1756443608544,5000.0,0.000167,2]
[381951951,1756443632480,325.47778045,0.000167,2]
[381951952,1756443632503,4674.52221955,0.000167,2]
[381951953,1756443656133,5000.0,0.000167,2]
[381951954,1756443679073,325.48778045,0.000167,2]
[381951955,1756443679097,4674.51221955,0.000167,2]
[381951956,1756443702989,399.06014622,0.000167,2]
[381951958,1756443868070,342.78,0.00027397,120]
[381951983,1756444231911,-160.0,0.00017002,2]
[381951985,1756444231921,-263.48950465,0.0001978,2]
[381951999,1756444232042,-87.41049535,0.0001988,2]
[381952097,1756444236097,-117.62721451,0.0001988,2]
[381952098,1756444236108,-494.16778549,0.000199,2]
[381952099,1756444236154,-1805.57531021,0.000199,2]
[381952128,1756444237934,-1417.5790325,0.000199,2]
[381952130,1756444237944,-160.0,0.0002,3]
[381952133,1756444237954,-189.863822,0.00020187,2]
[381952135,1756444237964,-307.917079,0.00020324,2]
[381952137,1756444237973,-480.0,0.00020625,2]
[381952139,1756444237983,-300.0,0.00020625,2]
[381952141,1756444237993,-300.0,0.00020625,2]
[381952143,1756444238002,-6913.0308901,0.00020626,2]
[381952145,1756444238011,-1122.695,0.00020927,2]
[381952147,1756444238021,-1272.0008648,0.00020927,2]
[381952149,1756444238031,-5830.68084,0.00021,2]
[381952151,1756444238040,-226.09446429,0.0002138,2]
[381952153,1756444238050,-3717.32212794,0.00021389,2]
[381952155,1756444238060,-160.0,0.00021949,2]
[381952157,1756444238070,-1298.0,0.00022,7]
[381952159,1756444238079,-420.0,0.00022444,2]
[381952161,1756444238089,-371.28551238,0.00022545,2]
[381952163,1756444238099,-360.0,0.00022562,2]
[381952165,1756444238108,-11358.84933845,0.00022746,2]
[381952167,1756444238118,-190.0,0.00022824,2]
[381952169,1756444238128,-3717.32212794,0.00022879,2]
[381952171,1756444238137,-579.45,0.00022968,10]
[381952173,1756444238147,-482.87,0.00022968,10]
[381952175,1756444238156,-402.39,0.00022968,10]
[381952177,1756444238166,-12500.0,0.00022969,7]
[381952180,1756444238176,-216.21406313,0.00022969,7]
[381952182,1756444238185,-529.77114056,0.00022969,7]
[381952194,1756444238305,-425.57542551,0.00022969,7]
[381952196,1756444238315,-160.0,0.00022969,7]
[381952198,1756444238324,-417.15472785,0.00022969,7]
[381952200,1756444238334,-500.0,0.00022971,2]
[381952202,1756444238344,-500.0,0.00022971,2]
[381952204,1756444238353,-500.0,0.00022971,2]
[381952206,1756444238363,-500.0,0.00022971,2]
[381952208,1756444238372,-500.0,0.00022971,2]
[381952210,1756444238382,-173.93554355,0.00022971,2]
[381952212,1756444238395,-326.06445645,0.00022971,2]
[381952214,1756444238404,-500.0,0.00022971,2]
[381952216,1756444238414,-135.69554315,0.00022971,2]
[381952219,1756444238430,-364.30445685,0.00022971,2]
[381952221,1756444238439,-500.0,0.00022971,2]
[381952223,1756444238449,-500.0,0.00022971,2]
[381952225,1756444238458,-330.45313705,0.00022971,2]
[381952227,1756444238467,-262.12186068,0.00022971,2]
[381952229,1756444238476,-500.0,0.00022971,2]
[381952230,1756444238485,-500.0,0.00022971,2]
[381952232,1756444238495,-500.0,0.00022971,2]
[381952234,1756444238504,-500.0,0.00022971,2]
[381952236,1756444238514,-301.78245724,0.00022971,2]
[381952238,1756444238525,-329.09021539,0.00022971,2]
[381952241,1756444238536,-500.0,0.00022971,2]
[381952242,1756444238545,-411.5,0.00022971,2]
[381952244,1756444238554,-500.0,0.00022971,2]
[381952246,1756444238563,-500.0,0.00022971,2]
[381952248,1756444238573,-500.0,0.00022971,2]
[381952250,1756444238585,-500.0,0.00022971,2]
[381952252,1756444238594,-500.0,0.00022971,2]
[381952254,1756444238603,-500.0,0.00022971,2]
[381952256,1756444238613,-500.0,0.00022971,2]
[381952257,1756444238624,-500.0,0.00022971,2]
[381952258,1756444238634,-500.0,0.00022971,2]
[381952259,1756444238644,-500.0,0.00022971,2]
[381952260,1756444238655,-500.0,0.00022971,2]
[381952261,1756444238665,-500.0,0.00022971,2]
[381952262,1756444238674,-500.0,0.00022971,2]
[381952263,1756444238683,-500.0,0.00022971,2]
[381952264,1756444238692,-500.0,0.00022971,2]
[381952265,1756444238702,-500.0,0.00022971,2]
[381952266,1756444238711,-500.0,0.00022971,2]
[381952267,1756444238721,-500.0,0.00022971,2]
[381952268,1756444238731,-500.0,0.00022971,2]
[381952269,1756444238740,-500.0,0.00022971,2]
[381952270,1756444238750,-500.0,0.00022971,2]
[381952271,1756444238760,-623.23248154,0.00022971,2]
[381952272,1756444238770,-500.0,0.00022971,2]
[381952273,1756444238780,-500.0,0.00022971,2]
[381952274,1756444238791,-553.00969182,0.00022971,2]
[381952275,1756444238801,-500.0,0.00022971,2]
[381952276,1756444238810,-500.0,0.00022971,2]
[381952277,1756444238819,-500.0,0.00022971,2]
[381952278,1756444238829,-500.0,0.00022971,2]
[381952279,1756444238839,-500.0,0.00022971,2]
[381952280,1756444238849,-500.0,0.00022971,2]
[381952281,1756444238860,-500.0,0.00022971,2]
[381952282,1756444238869,-500.0,0.00022971,2]
[381952283,1756444238879,-500.0,0.00022971,2]
[381952284,1756444238889,-500.0,0.00022971,2]
[381952285,1756444238898,-500.0,0.00022971,2]
[381952286,1756444238907,-500.0,0.00022971,2]
[381952287,1756444238917,-500.0,0.00022971,2]
[381952288,1756444238926,-241.88207195,0.00022971,2]
[381952289,1756444238936,-500.0,0.00022971,2]
[381952290,1756444238945,-500.0,0.00022971,2]
[381952291,1756444238955,-500.0,0.00022971,2]
[381952292,1756444238964,-500.0,0.00022971,2]
[381952293,1756444238974,-260.89381538,0.00022973,2]
[381952294,1756444238984,-500.0,0.00022973,2]
[381952295,1756444238995,-500.0,0.00022973,2]
[381952296,1756444239005,-500.0,0.00022973,2]
[381952297,1756444239015,-500.0,0.00022973,2]
[381952298,1756444239025,-500.0,0.00022973,2]
[381952299,1756444239035,-500.0,0.00022973,2]
[381952300,1756444239044,-500.0,0.00022973,2]
[381952301,1756444239054,-500.0,0.00022973,2]
[381952302,1756444239063,-500.0,0.00022974,2]
[381952303,1756444239073,-151.97507828,0.00022975,2]
[381952304,1756444239082,-201.25227768,0.00022975,2]
[381952305,1756444239092,-12500.0,0.00022978,7]
[381952306,1756444239101,-12500.0,0.00022987,7]
[381952307,1756444239111,-319.18856045,0.00022989,2]
[381952308,1756444239120,-100000.0,0.0002299,2]
[381952309,1756444239130,-500.0,0.00023248,2]
[381952310,1756444239139,-221.27042095,0.000235,2]
[381952311,1756444239150,-1000.0,0.00023521,2]
[381952312,1756444239159,-511.5466903,0.00023521,2]
[381952313,1756444239169,-500.0,0.00023521,2]
[381952314,1756444239178,-659.12088367,0.00023521,2]
[381952315,1756444239188,-329.09060518,0.00023521,2]
[381952316,1756444239198,-1000.0,0.00023521,2]
[381952317,1756444239208,-1000.0,0.00023521,2]
[381952318,1756444239217,-1000.0,0.00023521,2]
[381952319,1756444239227,-500.0,0.00023522,2]
[381952320,1756444239237,-307.917079,0.00023749,2]
[381952321,1756444239247,-605.81,0.00023795,3]
[381952322,1756444239256,-302.9,0.00023795,3]
[381952323,1756444239266,-151.45,0.00023795,3]
[381952324,1756444239275,-454.4,0.00023795,3]
[381952325,1756444239285,-500.0,0.00023796,2]
[381952326,1756444239295,-57302.6662713,0.00023805,2]
[381952327,1756444239304,-501.40282483,0.00023873,2]
[381952328,1756444239313,-187.30231734,0.00023873,2]
[381952329,1756444239323,-500.0,0.00023873,2]
[381952330,1756444239332,-500.0,0.00023873,2]
[381952331,1756444239342,-223.07154621,0.00023873,2]
[381952332,1756444239351,-500.0,0.00023873,2]
[381952333,1756444239360,-500.0,0.00023873,2]
[381952334,1756444239370,-501.16424268,0.00023873,2]
[381952335,1756444239380,-500.0,0.00023873,2]
[381952336,1756444239390,-150.0,0.00023873,2]
[381952337,1756444239400,-339.23308468,0.00023873,2]
[381952338,1756444239410,-500.0,0.00023873,2]
[381952339,1756444239419,-501.51929653,0.00023873,2]
[381952340,1756444239429,-500.0,0.00023873,2]
[381952341,1756444239439,-500.0,0.00023873,2]
[381952342,1756444239448,-500.0,0.00023873,2]
[381952343,1756444239458,-500.0,0.00023873,2]
[381952345,1756444239468,-500.0,0.00023873,2]
[381952346,1756444239477,-500.0,0.00023873,2]
[381952347,1756444239486,-506.80487785,0.00023873,2]
[381952348,1756444239495,-500.0,0.00023873,2]
[381952350,1756444239506,-646.32444962,0.00023873,2]
[381952351,1756444239515,-501.93303177,0.00023873,2]
[381952352,1756444239525,-502.26665287,0.00023873,2]
[381952353,1756444239535,-509.50373947,0.00023873,2]
[381952354,1756444239545,-518.05799485,0.00023873,2]
[381952355,1756444239555,-500.0,0.00023873,2]
[381952356,1756444239565,-500.0,0.00023873,2]
[381952357,1756444239576,-500.0,0.00023873,2]
[381952358,1756444239590,-500.0,0.00023873,2]
[381952359,1756444239602,-520.46407251,0.00023873,2]
[381952360,1756444239612,-500.0,0.00023873,2]
[381952361,1756444239623,-1056.24834409,0.00023885,2]
[381952362,1756444239634,-2264.49403674,0.0002389,2]
[381952363,1756444239646,-160.0,0.00023965,2]
[381952364,1756444239656,-500.0,0.00023973,2]
[381952365,1756444239666,-500.0,0.00023973,2]
[381952366,1756444239675,-501.05211284,0.00023973,2]
[381952367,1756444239686,-501.38259314,0.00023973,2]
[381952368,1756444239696,-500.0,0.00023973,2]
[381952369,1756444239705,-501.41096466,0.00023973,2]
[381952370,1756444239715,-500.41653827,0.00023973,2]
[381952371,1756444239724,-500.0,0.00023973,2]
[381952372,1756444239734,-500.0,0.00023973,2]
[381952373,1756444239744,-500.0,0.00023973,2]
[381952374,1756444239754,-500.0,0.00023973,2]
[381952375,1756444239764,-500.0,0.00023973,2]
[381952376,1756444239774,-501.95728844,0.00023973,2]
[381952377,1756444239784,-501.46911605,0.00023973,2]
[381952378,1756444239795,-500.0,0.00023973,2]
[381952379,1756444239804,-500.0,0.00023973,2]
[381952380,1756444239814,-500.0,0.00023973,2]
[381952381,1756444239824,-501.29449077,0.00023973,2]
[381952382,1756444239834,-217.66320664,0.00023973,2]
[381952383,1756444239843,-151.0,0.0002398,10]
[381952384,1756444239853,-199.05647522,0.0002398,10]
[381952385,1756444239863,-317.2103182,0.0002398,2]
[381952387,1756444239872,-510992.5899753,0.0002398,2]
[381952426,1756444246459,-417.15472785,0.00022743,2]
[381952427,1756444246468,-181.14,0.0002397,3]
[381952428,1756444246479,-128.96709843,0.0002398,2]
[381952430,1756444287100,183.342349,0.00013699,2]
[381952433,1756444530586,180.0,0.00024256,120]
[381952435,1756445217338,174.175231,0.00013699,2]
[381952573,1756445438110,-1589.7994709,0.00019174,2]
[381952575,1756445438120,-169.26903636,0.00019899,2]
[381952577,1756445438129,-3895.30494591,0.000199,2]
[381952579,1756445438139,-160.0,0.0002,3]
[381952581,1756445438148,-160.0,0.0002,3]
[381952583,1756445438157,-1241.86,0.0002,2]
[381952585,1756445438168,-203.77194311,0.00020087,2]
[381952587,1756445438177,-278.535201,0.00020101,2]
[381952589,1756445438188,-174.175231,0.00020187,2]
[381952591,1756445438197,-1200.0,0.0002028,2]
[381952593,1756445438207,-300.0,0.0002028,2]
[381952595,1756445438217,-17591.25902433,0.00020281,2]
[381952602,1756445438273,-6625.99489429,0.00020281,2]
[381952604,1756445438283,-665.05618807,0.00020281,2]
[381952606,1756445438292,-2657.56452751,0.00020281,2]
[381952608,1756445438302,-238.8779796,0.00020633,2]
[381952610,1756445438311,-175.0,0.00021347,2]
[381952612,1756445438320,-1200.0,0.00021348,2]
[381952614,1756445438329,-3235.16210407,0.00021349,2]
[381952616,1756445438338,-261.41699536,0.00021373,2]
[381952618,1756445438347,-3895.30494568,0.00021389,2]
[381952620,1756445438356,-12616.66478477,0.000215,2]
[381952622,1756445438365,-613.03801579,0.000217,2]
[381952624,1756445438374,-2879.5978392,0.00021781,2]
[381952626,1756445438383,-169.57084821,0.0002184,2]
[381952628,1756445438392,-1029.10657736,0.000219,2]
[381952630,1756445438401,-260.89381538,0.00021973,2]
[381952632,1756445438411,-505.9782366,0.00021973,2]
[381952634,1756445438421,-500.0,0.00021973,2]
[381952636,1756445438431,-500.0,0.00021973,2]
[381952638,1756445438440,-500.0,0.00021973,2]
[381952640,1756445438449,-500.0,0.00021973,2]
[381952642,1756445438458,-500.0,0.00021973,2]
[381952644,1756445438467,-503.0648062,0.00021973,2]
[381952646,1756445438476,-310.28792753,0.00021973,2]
[381952648,1756445438486,-500.0,0.00021973,2]
[381952650,1756445438495,-500.0,0.00021973,2]
[381952652,1756445438505,-500.0,0.00021973,2]
[381952654,1756445438514,-500.0,0.00021973,2]
[381952657,1756445438523,-587.34291779,0.00021973,2]
[381952659,1756445438533,-501.16424268,0.00021973,2]
[381952661,1756445438542,-501.51929653,0.00021973,2]
[381952663,1756445438551,-200.53074167,0.00021973,2]
[381952665,1756445438560,-506.23229235,0.00021973,2]
[381952667,1756445438570,-500.0,0.00021973,2]
[381952669,1756445438579,-573.11122441,0.00021973,2]
[381952671,1756445438589,-500.0,0.00021973,2]
[381952672,1756445438598,-500.0,0.00021973,2]
[381952675,1756445438607,-500.0,0.00021973,2]
[381952677,1756445438616,-500.0,0.00021973,2]
[381952679,1756445438626,-284.67,0.00021975,10]
[381952681,1756445438635,-542.84,0.00021975,10]
[381952683,1756445438645,-452.37,0.00021975,10]
[381952685,1756445438654,-376.97,0.00021975,10]
[381952687,1756445438663,-630.54,0.0002198,3]
[381952689,1756445438673,-441.49,0.0002198,3]
[381952691,1756445438683,-220.74,0.0002198,3]
[381952693,1756445438692,-662.27,0.0002198,3]
[381952695,1756445438701,-500.0,0.00021984,2]
[381952696,1756445438710,-500.0,0.00021984,2]
[381952698,1756445438719,-245.4278634,0.00021984,2]
[381952700,1756445438729,-500.0,0.00021984,2]
[381952702,1756445438738,-500.0,0.00021984,2]
[381952704,1756445438747,-305.63219372,0.00021984,2]
[381952706,1756445438756,-500.0,0.00021984,2]
[381952708,1756445438766,-500.0,0.00021984,2]
[381952710,1756445438775,-301.78245724,0.00021984,2]
[381952712,1756445438785,-500.0,0.00021984,2]
[381952726,1756445438898,-500.0,0.00021984,2]
[381952728,1756445438909,-500.0,0.00021984,2]
[381952730,1756445438918,-330.45313705,0.00021984,2]
[381952732,1756445438928,-500.0,0.00021984,2]
[381952734,1756445438938,-500.0,0.00021984,2]
[381952736,1756445438947,-500.0,0.00021984,2]
[381952738,1756445438957,-500.0,0.00021984,2]
[381952740,1756445438966,-500.0,0.00021984,2]
[381952742,1756445438975,-329.09021539,0.00021984,2]
[381952744,1756445438984,-500.0,0.00021984,2]
[381952746,1756445438994,-500.0,0.00021984,2]
[381952748,1756445439003,-500.0,0.00021984,2]
[381952750,1756445439012,-500.0,0.00021984,2]
[381952752,1756445439022,-539.9819066,0.00021984,2]
[381952754,1756445439031,-500.0,0.00021984,2]
[381952756,1756445439041,-500.0,0.00021984,2]
[381952758,1756445439051,-500.0,0.00021984,2]
[381952760,1756445439061,-514.75253148,0.00021984,2]
[381952762,1756445439072,-500.0,0.00021984,2]
[381952764,1756445439081,-500.0,0.00021984,2]
[381952766,1756445439091,-500.0,0.00021984,2]
[381952768,1756445439106,-500.0,0.00021984,2]
[381952770,1756445439115,-500.0,0.00021984,2]
[381952772,1756445439125,-530.09691821,0.00021984,2]
[381952774,1756445439134,-500.0,0.00021984,2]
[381952776,1756445439146,-500.0,0.00021984,2]
[381952779,1756445439156,-500.0,0.00021984,2]
[381952781,1756445439165,-263.14656573,0.00021984,2]
[381952783,1756445439177,-500.0,0.00021984,2]
[381952785,1756445439188,-500.0,0.00021984,2]
[381952787,1756445439197,-500.0,0.00021984,2]
[381952789,1756445439206,-500.0,0.00021984,2]
[381952791,1756445439215,-500.0,0.00021984,2]
[381952793,1756445439224,-500.0,0.00021984,2]
[381952795,1756445439234,-500.0,0.00021984,2]
[381952797,1756445439243,-500.0,0.00021984,2]
[381952799,1756445439252,-500.0,0.00021984,2]
[381952801,1756445439262,-500.0,0.00021984,2]
[381952803,1756445439272,-500.0,0.00021984,2]
[381952805,1756445439281,-500.0,0.00021984,2]
[381952807,1756445439291,-500.0,0.00021984,2]
[381952809,1756445439299,-500.0,0.00021984,2]
[381952811,1756445439308,-500.0,0.00021984,2]
[381952813,1756445439318,-500.0,0.00021984,2]
[381952815,1756445439327,-500.0,0.00021984,2]
[381952817,1756445439337,-500.0,0.00021984,2]
[381952819,1756445439346,-500.0,0.00021984,2]
[381952821,1756445439355,-500.0,0.00021984,2]
[381952823,1756445439366,-500.0,0.00021984,2]
[381952825,1756445439375,-500.0,0.00021984,2]
[381952827,1756445439385,-500.0,0.00021984,2]
[381952829,1756445439394,-500.0,0.00021984,2]
[381952831,1756445439404,-500.0,0.00021984,2]
[381952833,1756445439414,-500.0,0.00021984,2]
[381952835,1756445439424,-500.0,0.00021984,2]
[381952837,1756445439434,-622.29756166,0.00021984,2]
[381952839,1756445439443,-500.0,0.00021984,2]
[381952841,1756445439454,-500.0,0.00021984,2]
[381952843,1756445439463,-151.97507828,0.00021987,2]
[381952845,1756445439473,-201.25227768,0.00021987,2]
[381952847,1756445439483,-151.0,0.00021989,2]
[381952849,1756445439493,-199.05647522,0.00021989,2]
[381952851,1756445439503,-500.0,0.00021989,2]
[381952853,1756445439512,-153.71832537,0.00021989,2]
[381952855,1756445439521,-152.72723652,0.00021989,2]
[381952857,1756445439530,-151.0,0.00021989,2]
[381952859,1756445439539,-153.16939087,0.00021989,2]
[381952861,1756445439549,-151.0,0.00021989,2]
[381952863,1756445439558,-200.56674716,0.00021989,2]
[381952865,1756445439567,-151.0,0.00021989,2]
[381952867,1756445439577,-152.00669618,0.00021989,2]
[381952869,1756445439586,-151.30882845,0.00021989,2]
[381952871,1756445439596,-319.18856045,0.00021989,2]
[381952873,1756445439605,-100000.0,0.0002199,2]
[381952875,1756445439614,-6387.9,0.00022,7]
[381952877,1756445439624,-1091.03,0.00022,7]
[381952879,1756445439633,-355.35352368,0.00022,2]
[381952882,1756445439643,-160.0,0.00022036,2]
[381952884,1756445439652,-420.0,0.00022077,2]
[381952886,1756445439661,-192.92474915,0.000221,2]
[381952888,1756445439671,-601.9,0.000221,2]
[381952890,1756445439680,-400.0,0.00022182,2]
[381952892,1756445439690,-151.0,0.00022263,2]
[381952894,1756445439700,-500.0,0.00022263,2]
[381952896,1756445439709,-151.0,0.00022263,2]
[381952898,1756445439719,-151.0,0.00022263,2]
[381952900,1756445439728,-186.70227275,0.00022263,2]
[381952902,1756445439739,-279.06846716,0.000225,2]
[381952904,1756445439747,-511.5466903,0.00022521,2]
[381952906,1756445439757,-829.09060518,0.00022521,2]
[381952908,1756445439766,-659.12088367,0.00022521,2]
[381952910,1756445439776,-1000.0,0.00022521,2]
[381952912,1756445439786,-1000.0,0.00022521,2]
[381952914,1756445439796,-501.58549658,0.00022521,2]
[381952916,1756445439805,-1002.17233477,0.00022521,2]
[381952918,1756445439815,-1006.09847702,0.00022521,2]
[381952920,1756445439824,-1000.0,0.00022521,2]
[381952922,1756445439833,-1000.0,0.00022521,2]
[381952924,1756445439843,-1000.0,0.00022521,2]
[381952926,1756445439852,-1000.0,0.00022521,2]
[381952928,1756445439861,-151.0,0.00022537,2]
[381952930,1756445439871,-500.0,0.00022537,2]
[381952932,1756445439881,-198.5426892,0.00022537,2]
[381952934,1756445439890,-198.65074793,0.00022537,2]
[381952936,1756445439899,-1029.10657735,0.00022568,2]
[381952938,1756445439909,-4528.98807348,0.00022779,2]
[381952940,1756445439918,-417.15472785,0.00022793,2]
[381952942,1756445439928,-11358.84933845,0.00022797,2]
[381952944,1756445439937,-246.88366527,0.00022811,2]
[381952946,1756445439947,-500.0,0.00022811,2]
[381952948,1756445439957,-3027.336353,0.00022873,2]
[381952950,1756445439966,-500.0,0.00022873,2]
[381952952,1756445439975,-500.0,0.00022873,2]
[381952954,1756445439985,-500.0,0.00022873,2]
[381952956,1756445439994,-500.0,0.00022873,2]
[381952958,1756445440003,-500.0,0.00022873,2]
[381952960,1756445440012,-500.0,0.00022873,2]
[381952962,1756445440021,-500.0,0.00022873,2]
[381952964,1756445440031,-187.30231734,0.00022873,2]
[381952966,1756445440041,-520.46407251,0.00022873,2]
[381952968,1756445440051,-501.05211284,0.00022873,2]
[381952970,1756445440061,-500.0,0.00022873,2]
[381952972,1756445440071,-223.07154621,0.00022873,2]
[381952974,1756445440080,-339.23308468,0.00022873,2]
[381952976,1756445440091,-150.0,0.00022873,2]
[381952978,1756445440104,-500.0,0.00022873,2]
[381952980,1756445440113,-500.0,0.00022873,2]
[381952982,1756445440123,-500.0,0.00022873,2]
[381952984,1756445440132,-500.0,0.00022873,2]
[381952986,1756445440141,-500.0,0.00022873,2]
[381952988,1756445440151,-502.26665287,0.00022873,2]
[381952991,1756445440160,-506.80487785,0.00022873,2]
[381952994,1756445440169,-500.0,0.00022873,2]
[381952996,1756445440178,-646.32444962,0.00022873,2]
[381952998,1756445440187,-501.93303177,0.00022873,2]
[381953000,1756445440197,-518.05799485,0.00022873,2]
[381953002,1756445440206,-509.50373947,0.00022873,2]
[381953004,1756445440216,-500.0,0.00022873,2]
[381953006,1756445440225,-500.0,0.00022873,2]
[381953008,1756445440235,-217.66320664,0.00022873,2]
[381953010,1756445440244,-501.41096466,0.00022873,2]
[381953012,1756445440254,-500.0,0.00022873,2]
[381953014,1756445440265,-501.38259314,0.00022873,2]
[381953016,1756445440282,-500.0,0.00022873,2]
[381953018,1756445440292,-500.0,0.00022873,2]
[381953020,1756445440301,-500.0,0.00022873,2]
[381953022,1756445440312,-501.46911605,0.00022873,2]
[381953024,1756445440322,-501.95728844,0.00022873,2]
[381953026,1756445440331,-500.0,0.00022873,2]
[381953028,1756445440340,-500.0,0.00022873,2]
[381953030,1756445440349,-501.29449077,0.00022873,2]
[381953032,1756445440359,-500.0,0.00022873,2]
[381953034,1756445440368,-500.41653827,0.00022873,2]
[381953036,1756445440378,-500.0,0.00022873,2]
[381953038,1756445440387,-500.0,0.00022873,2]
[381953040,1756445440396,-500.0,0.00022873,2]
[381953042,1756445440406,-500.0,0.00022873,2]
[381953044,1756445440416,-370000.0,0.00022873,2]
[381953046,1756445440427,-3895.30494568,0.00022879,2]
[381953048,1756445440436,-160.0,0.00022893,2]
[381953050,1756445440446,-12500.0,0.0002296,7]
[381953052,1756445440455,-417.15472785,0.0002296,7]
[381953054,1756445440464,-160.0,0.0002296,7]
[381953056,1756445440474,-425.57542551,0.0002296,7]
[381953058,1756445440483,-529.77114056,0.0002296,7]
[381953060,1756445440492,-216.21406313,0.0002296,7]
[381953062,1756445440502,-12500.0,0.00022998,7]
[381953064,1756445440511,-12290.90653408,0.00023,2]
[381953066,1756445440521,-161.0,0.00023,4]
[381953068,1756445440530,-160.12278592,0.00023,3]
[381953070,1756445440539,-12500.0,0.00023007,7]
[381953072,1756445440549,-2893.39547626,0.0002301,5]
[381953074,1756445440558,-12500.0,0.00023016,7]
[381953076,1756445440567,-160.0,0.00023016,7]
[381953078,1756445440577,-417.15472785,0.00023016,7]
[381953080,1756445440587,-425.57542551,0.00023016,7]
[381953082,1756445440596,-529.77114056,0.00023016,7]
[381953084,1756445440605,-216.21406313,0.00023016,7]
[381953086,1756445440615,-1500.0,0.00023068,2]
[381953088,1756445440624,-526.17971562,0.00023068,2]
[381953090,1756445440633,-1500.0,0.00023068,2]
[381953092,1756445440642,-1500.0,0.00023068,2]
[381953094,1756445440651,-1500.0,0.00023068,2]
[381953096,1756445440660,-1507.65629494,0.00023068,2]
[381953098,1756445440670,-940.47783917,0.00023071,2]
[381953100,1756445440679,-250.0,0.00023071,2]
[381953102,1756445440689,-500.0,0.00023071,2]
[381953104,1756445440698,-250.0,0.00023071,2]
[381953106,1756445440708,-500.0,0.00023071,2]
[381953108,1756445440718,-250.0,0.00023071,2]
[381953110,1756445440727,-500.0,0.00023071,2]
[381953112,1756445440737,-250.0,0.00023071,2]